bitfinex/quotes_ETHUSD_20250913
["timestamp","ask_amount","ask_price","bid_price","bid_amount"]
[1757731590828,179.37140725,4699.1,4699.0,41.24570447]
[1757731591149,176.69823844,4699.1,4699.0,41.24570447]
[1757731591345,172.06049294,4699.1,4699.0,41.24570447]
[1757731591656,166.3,4699.1,4699.0,41.24570447]
[1757731591866,165.68185822,4699.1,4699.0,41.24570447]
[1757731592059,161.32319496,4699.1,4699.0,41.24570447]
[1757731592263,161.03623348,4699.1,4699.0,41.24570447]
[1757731592561,158.44086529,4699.1,4699.0,41.24570447]
[1757731592923,154.87987062,4699.1,4699.0,41.24570447]
[1757731593159,154.08220219,4699.1,4699.0,41.24570447]
[1757731593363,151.84895697,4699.1,4699.0,41.24570447]
[1757731593563,148.28796164,4699.1,4699.0,41.24570447]
[1757731593762,149.51796164,4699.1,4699.0,41.24570447]
[1757731593989,145.05100958,4699.1,4699.0,41.24570447]
[1757731594292,140.95192942,4699.1,4699.0,41.24570447]
[1757731594877,137.1227585,4699.1,4699.0,41.24570447]
[1757731595060,138.3527585,4699.1,4699.0,41.24570447]
[1757731596305,138.3547585,4699.1,4699.0,11.24570447]
[1757731596463,139.5847585,4699.1,4699.0,43.88750488]
[1757731596662,135.86400492,4699.1,4699.0,43.88750488]
[1757731597186,135.86400492,4699.1,4699.0,41.24570447]
[1757731597367,135.86400492,4699.1,4699.0,43.88727645]
[1757731597910,137.09400492,4699.1,4699.0,43.99367645]
[1757731598403,134.17091911,4699.1,4699.0,43.99367645]
[1757731598976,130.86950656,4699.1,4699.0,43.99367645]
[1757731599181,132.09950656,4699.1,4699.0,43.99367645]
[1757731599806,128.37875298,4699.1,4699.0,41.35210447]
[1757731600396,128.12388105,4699.1,4699.0,41.35210447]
[1757731600573,129.35388105,4699.1,4699.0,41.35210447]
[1757731601330,129.35388105,4699.1,4699.0,11.35210447]
[1757731601485,126.43079524,4699.1,4699.0,41.35210447]
[1757731602083,127.66079524,4699.1,4699.0,41.35210447]
[1757731602500,124.73770943,4699.1,4699.0,41.35210447]
[1757731602700,120.90864192,4699.1,4699.0,36.0271366]
[1757731602897,120.90864192,4699.1,4699.0,36.02232092]
[1757731603311,120.90864192,4699.1,4699.0,36.81432092]
[1757731603622,122.13864192,4699.1,4699.0,36.81432092]
[1757731603785,122.13864192,4699.1,4699.0,39.81432092]
[1757731603786,124.05954192,4699.1,4699.0,39.81432092]
[1757731604610,124.00954192,4699.1,4699.0,39.81432092]
[1757731604922,125.23954192,4699.1,4699.0,39.81432092]
[1757731605131,125.18954192,4699.1,4699.0,39.81432092]
[1757731606682,126.41954192,4699.1,4699.0,39.81432092]
[1757731607392,126.71844192,4699.1,4699.0,39.81432092]
[1757731608126,127.94844192,4699.1,4699.0,39.81432092]
[1757731608510,127.94844192,4699.1,4699.0,9.81432092]
[1757731608706,127.94844192,4699.1,4699.0,39.81432092]
[1757731609435,129.17844192,4699.1,4699.0,39.81432092]
[1757731609813,128.87954192,4699.1,4699.0,39.81432092]
[1757731610139,127.42284192,4699.1,4699.0,39.81432092]
[1757731610435,126.95864192,4699.1,4699.0,39.81432092]
[1757731610603,128.18864192,4699.1,4699.0,39.81432092]
[1757731611836,128.18864192,4699.1,4699.0,36.27932092]
[1757731612139,129.41864192,4699.1,4699.0,39.81432092]
[1757731613333,130.64864192,4699.1,4699.0,39.81432092]
[1757731613636,130.64864192,4699.1,4699.0,40.07730634]
[1757731613796,130.64864192,4699.1,4699.0,40.31776197]
[1757731614810,131.87864192,4699.1,4699.0,40.31776197]
[1757731616220,133.10864192,4699.1,4699.0,40.31776197]
[1757731617155,132.85372911,4699.1,4699.0,40.31776197]
[1757731617666,134.08372911,4699.1,4699.0,40.31776197]
[1757731618431,134.08372911,4699.1,4699.0,40.07730634]
[1757731618662,134.08372911,4699.1,4699.0,38.9208929]
[1757731618663,135.97852911,4699.1,4699.0,38.9208929]
[1757731618857,137.66582911,4699.1,4699.0,42.4558929]
[1757731619056,137.66582911,4699.1,4699.0,39.81432092]
[1757731619725,137.66582911,4699.1,4699.0,42.4558929]
[1757731620226,138.89582911,4699.1,4699.0,42.4558929]
[1757731620740,136.54372911,4699.1,4699.0,42.4558929]
[1757731620926,136.54372911,4699.1,4699.0,42.71887832]
[1757731621559,137.77372911,4699.1,4699.0,42.71887832]
[1757731622834,139.00372911,4699.1,4699.0,42.71887832]
[1757731624170,140.23372911,4699.1,4699.0,40.07730634]
[1757731624782,140.23372911,4699.1,4699.0,10.07730634]
[1757731624955,142.58582911,4699.1,4699.0,36.54230634]
[1757731625156,142.58582911,4699.1,4699.0,42.47405997]
[1757731625693,143.81582911,4699.1,4699.0,39.81432092]
[1757731627019,145.04582911,4699.1,4699.0,39.81432092]
[1757731627156,144.79090879,4699.1,4699.0,39.81432092]
[1757731628761,146.02090879,4699.1,4699.0,39.81432092]
[1757731630199,147.25090879,4699.1,4699.0,39.81432092]
[1757731631101,147.25090879,4699.1,4699.0,9.81432092]
[1757731631431,147.25090879,4699.1,4699.0,39.81432092]
[1757731631622,148.48090879,4699.1,4699.0,39.81432092]
[1757731633033,149.71090879,4699.1,4699.0,39.81432092]
[1757731633232,149.71090879,4699.1,4699.0,9.81432092]
[1757731633539,149.71090879,4699.1,4699.0,39.81432092]
[1757731634219,149.71090879,4699.1,4699.0,9.81432092]
[1757731634424,150.94090879,4699.1,4699.0,39.81432092]
[1757731635235,150.94090879,4699.1,4699.0,36.27932092]
[1757731635422,150.94090879,4699.1,4699.0,36.02132092]
[1757731635805,152.17090879,4699.1,4699.0,36.02132092]
[1757731636001,152.17090879,4699.1,4699.0,39.02132092]
[1757731637334,153.40090879,4699.1,4699.0,39.02132092]
[1757731638378,153.40090879,4699.1,4699.0,9.02132092]
[1757731638645,153.40090879,4699.1,4699.0,39.02132092]
[1757731638856,154.63090879,4699.1,4699.0,39.02132092]
[1757731640404,155.86090879,4699.1,4699.0,9.02132092]
[1757731640642,155.86090879,4699.1,4699.0,39.02132092]
[1757731640815,155.86090879,4699.1,4699.0,39.28430634]
[1757731641615,157.09090879,4699.1,4699.0,39.28430634]
[1757731643106,158.32090879,4699.1,4699.0,39.02132092]
[1757731644768,159.55090879,4699.1,4699.0,39.02132092]
[1757731645838,159.24780879,4699.1,4699.0,39.02132092]
[1757731646044,160.78680879,4699.1,4699.0,39.02132092]
[1757731647272,158.42880879,4699.1,4699.0,39.02132092]
[1757731647577,159.65880879,4699.1,4699.0,40.31676197]
[1757731648334,159.65880879,4699.1,4699.0,45.41576197]
[1757731649164,160.88880879,4699.1,4699.0,45.41576197]
[1757731650585,162.11880879,4699.1,4699.0,45.41576197]
[1757731652152,163.34880879,4699.1,4699.0,45.41576197]
[1757731652849,163.34880879,4699.1,4699.0,15.41576197]
[1757731653054,163.09387912,4699.1,4699.0,45.30936197]
[1757731653418,163.09387912,4699.1,4699.0,45.54354432]
[1757731653578,164.32387912,4699.1,4699.0,45.54354432]
[1757731653885,164.32387912,4699.1,4699.0,15.54354432]
[1757731654087,164.32387912,4699.1,4699.0,45.54354432]
[1757731655191,165.55387912,4699.1,4699.0,45.54354432]
[1757731655987,165.55387912,4699.1,4699.0,15.54354432]
[1757731656192,165.55387912,4699.1,4699.0,45.54354432]
[1757731656562,166.78387912,4699.1,4699.0,45.54354432]
[1757731658421,168.01387912,4699.1,4699.0,45.54354432]
[1757731659416,168.01387912,4699.1,4699.0,45.30308869]
[1757731659733,171.55237912,4699.1,4699.0,45.06890634]
[1757731660079,171.24337912,4699.1,4699.0,45.06890634]
[1757731660279,169.24387912,4699.1,4699.0,45.06890634]
[1757731661015,170.47387912,4699.1,4699.0,45.06890634]
[1757731662339,171.70387912,4699.1,4699.0,44.80592092]
[1757731663241,171.44896427,4699.1,4699.0,14.91232092]
[1757731663415,171.44896427,4699.1,4699.0,44.91232092]
[1757731663617,172.67896427,4699.1,4699.0,44.91232092]
[1757731664249,172.67896427,4699.1,4699.0,14.91232092]
[1757731664447,172.67896427,4699.1,4699.0,44.91232092]
[1757731665006,173.90896427,4699.1,4699.0,44.91232092]
[1757731665444,173.7980369,4699.1,4699.0,44.91232092]
[1757731666564,175.0280369,4699.1,4699.0,44.91232092]
[1757731667643,171.42454815,4699.1,4699.0,44.91232092]
[1757731667807,172.65454815,4699.1,4699.0,44.91232092]
[1757731668007,170.97474088,4699.1,4699.0,44.91232092]
[1757731669710,172.20474088,4699.1,4699.0,44.91232092]
[1757731671152,173.43474088,4699.1,4699.0,44.91232092]
[1757731672536,174.66474088,4699.1,4699.0,14.91232092]
[1757731672717,176.17714088,4699.1,4699.0,44.91232092]
[1757731673076,175.92222597,4699.1,4699.0,44.91232092]
[1757731673580,175.92222597,4699.1,4699.0,14.91232092]
[1757731673870,175.92222597,4699.1,4699.0,44.91232092]
[1757731674026,175.19412597,4699.1,4699.0,44.91232092]
[1757731674220,175.19412597,4699.1,4699.0,41.64130634]
[1757731674419,175.19412597,4699.1,4699.0,45.17430634]
[1757731675627,176.42412597,4699.1,4699.0,45.17430634]
[1757731677125,177.65412597,4699.1,4699.0,45.17430634]
[1757731678462,178.88412597,4699.1,4699.0,45.17430634]
[1757731679665,181.13052597,4699.1,4699.0,15.17430634]
[1757731679868,182.36052597,4699.1,4699.0,45.17430634]
[1757731680385,182.36052597,4699.1,4699.0,44.91132092]
[1757731681348,183.59052597,4699.1,4699.0,44.91132092]
[1757731682760,184.82052597,4699.1,4699.0,44.91132092]
[1757731683177,184.56561613,4699.1,4699.0,44.91132092]
[1757731683775,184.56561613,4699.1,4699.0,14.91132092]
[1757731683936,184.56561613,4699.1,4699.0,44.91132092]
[1757731684272,185.79561613,4699.1,4699.0,44.91132092]
[1757731685482,187.02561613,4699.1,4699.0,44.91132092]
[1757731685660,186.73731613,4699.1,4699.0,44.91132092]
[1757731685866,184.77921613,4699.1,4699.0,45.17430634]
[1757731686751,186.00921613,4699.1,4699.0,45.17430634]
[1757731688200,187.23921613,4699.1,4699.0,45.17430634]
[1757731688396,187.23921613,4699.1,4699.0,45.64894432]
[1757731689601,188.46921613,4699.1,4699.0,45.64894432]
[1757731689787,176.3233403,4699.1,4699.0,44.73995985]
[1757731689989,168.41576965,4699.1,4699.0,44.73995985]
[1757731690162,158.68552598,4699.1,4699.0,45.48839881]
[1757731690518,154.16928605,4699.1,4699.0,47.126654]
[1757731690714,148.49308725,4699.1,4699.0,47.126654]
[1757731690914,144.77448551,4699.1,4699.0,47.126654]
[1757731691203,134.68173795,4699.1,4699.0,43.593654]
[1757731691388,132.02628324,4699.1,4699.0,47.126654]
[1757731691596,131.22964604,4699.1,4699.0,47.126654]
[1757731691762,130.16746603,4699.1,4699.0,47.126654]
[1757731691965,123.04870384,4699.1,4699.0,47.126654]
[1757731692281,115.34586768,4699.1,4699.0,47.126654]
[1757731692478,105.78324753,4699.1,4699.0,47.126654]
[1757731692682,99.4091911,4699.1,4699.0,43.593654]
[1757731692865,97.40484788,4699.1,4699.0,35.32073896]
[1757731693065,97.40484788,4699.1,4699.0,10.261]
[1757731693265,97.92536529,4699.1,4699.0,29.81115044]
[1757731693609,99.15536529,4699.1,4699.0,24.1832465]
[1757731693769,98.63484788,4699.1,4699.0,24.1832465]
[1757731693959,98.63484788,4699.1,4699.0,27.1832465]
[1757731694163,98.63484788,4699.1,4699.0,24.1832465]
[1757731694364,98.63484788,4699.1,4699.0,6.532]
[1757731694690,98.63484788,4699.1,4699.0,36.532]
[1757731695007,99.86484788,4699.1,4699.0,36.532]
[1757731695515,99.86484788,4699.1,4699.0,38.163]
[1757731695805,99.86484788,4699.1,4699.0,38.164]
[1757731695988,99.86484788,4699.1,4699.0,31.632]
[1757731696192,103.02474507,4699.1,4699.0,35.165]
[1757731696395,104.25474507,4699.1,4699.0,38.165]
[1757731696598,102.09484788,4699.1,4699.0,38.165]
[1757731697718,102.09484788,4699.1,4699.0,35.165]
[1757731698007,103.32484788,4699.1,4699.0,38.165]
[1757731699308,104.55484788,4699.1,4699.0,38.165]
[1757731699506,104.55484788,4699.1,4699.0,8.165]
[1757731699810,104.55484788,4699.1,4699.0,38.165]
[1757731700515,105.78484788,4699.1,4699.0,38.165]
[1757731701072,107.94474507,4699.1,4699.0,38.165]
[1757731702000,109.17474507,4699.1,4699.0,38.165]
[1757731702607,109.17474507,4699.1,4699.0,8.165]
[1757731702834,109.17474507,4699.1,4699.0,38.165]
[1757731703399,110.40474507,4699.1,4699.0,38.165]
[1757731704706,111.63474507,4699.1,4699.0,38.165]
[1757731706213,111.63474507,4699.1,4699.0,0.001]
[1757731706510,112.86474507,4699.1,4699.0,0.001]
[1757731707732,114.09474507,4699.1,4699.0,0.001]
[1757731708508,117.62774507,4699.1,4699.0,0.001]
[1757731709147,118.85774507,4699.1,4699.0,0.001]
[1757731710741,120.08774507,4699.1,4699.0,0.001]
[1757731712012,121.31774507,4699.1,4699.0,0.001]
[1757731712449,117.78474507,4699.1,4699.0,0.001]
[1757731713519,119.01474507,4699.1,4699.0,0.001]
[1757731715171,123.77874507,4699.1,4699.0,0.001]
[1757731716349,125.00874507,4699.1,4699.0,0.001]
[1757731717861,126.23874507,4699.1,4699.0,0.001]
[1757731719178,127.46874507,4699.1,4699.0,0.001]
[1757731720482,128.69874507,4699.1,4699.0,0.001]
[1757731722051,129.92874507,4699.1,4699.0,0.001]
[1757731723435,131.15874507,4699.1,4699.0,0.001]
[1757731724895,132.38874507,4699.1,4699.0,0.001]
[1757731726394,133.61874507,4699.1,4699.0,0.001]
[1757731728289,134.84874507,4699.1,4699.0,0.001]
[1757731729127,134.40304507,4699.1,4699.0,0.001]
[1757731729925,135.63304507,4699.1,4699.0,0.001]
[1757731731335,136.86304507,4699.1,4699.0,0.001]
[1757731732616,138.09304507,4699.1,4699.0,0.001]
[1757731733901,138.53834507,4699.1,4699.0,0.001]
[1757731734102,139.76834507,4699.1,4699.0,0.001]
[1757731735529,140.99834507,4699.1,4699.0,0.001]
[1757731736805,142.22834507,4699.1,4699.0,0.001]
[1757731738418,143.45834507,4699.1,4699.0,0.001]
[1757731738746,139.92434507,4699.1,4699.0,0.001]
[1757731738903,143.01304507,4699.1,4699.0,0.001]
[1757731739738,144.24304507,4699.1,4699.0,0.001]
[1757731741550,145.91834507,4699.1,4699.0,0.001]
[1757731742723,147.94034507,4699.1,4699.0,0.001]
[1757731743713,144.40634507,4699.1,4699.0,0.001]
[1757731743914,147.94034507,4699.1,4699.0,0.001]
[1757731744211,149.17034507,4699.1,4699.0,0.001]
[1757731745432,150.40034507,4699.1,4699.0,0.001]
[1757731746707,151.63034507,4699.1,4699.0,0.001]
[1757731748059,152.86034507,4699.1,4699.0,0.001]
[1757731750472,154.09034507,4699.1,4699.0,0.001]
[1757731750895,151.05234507,4699.1,4699.0,0.3136]
[1757731751394,151.05234507,4699.1,4699.0,0.001]
[1757731751900,152.28234507,4699.1,4699.0,0.001]
[1757731753172,153.51234507,4699.1,4699.0,0.001]
[1757731754444,153.81584507,4699.1,4699.0,0.001]
[1757731754649,156.86464507,4699.1,4699.0,0.001]
[1757731755676,155.04584507,4699.1,4699.0,0.001]
[1757731756058,156.27584507,4699.1,4699.0,0.001]
[1757731756649,155.97234507,4699.1,4699.0,0.001]
[1757731757581,157.20234507,4699.1,4699.0,0.3041]
[1757731757945,157.20234507,4699.1,4699.0,0.001]
[1757731758385,157.51264507,4699.1,4699.0,0.001]
[1757731758731,159.79664507,4699.1,4699.0,0.001]
[1757731758840,161.02664507,4699.1,4699.0,0.001]
[1757731760361,162.25664507,4699.1,4699.0,0.001]
[1757731760943,161.79914507,4699.1,4699.0,0.001]
[1757731761682,163.02914507,4699.1,4699.0,0.001]
[1757731762185,163.48664507,4699.1,4699.0,0.001]
[1757731762979,164.71664507,4699.1,4699.0,0.001]
[1757731763387,165.50864507,4699.1,4699.0,0.001]
[1757731764385,166.73864507,4699.1,4699.0,0.001]
[1757731765876,168.16780586,4699.1,4699.0,0.001]
[1757731766144,171.07352505,4699.1,4699.0,0.001]
[1757731766366,171.15863858,4699.1,4699.0,0.001]
[1757731767211,172.38863858,4699.1,4699.0,0.001]
[1757731767395,172.38798004,4699.1,4699.0,0.001]
[1757731768496,173.61798004,4699.1,4699.0,0.001]
[1757731769267,173.8427322,4699.1,4699.0,0.001]
[1757731770026,175.0727322,4699.1,4699.0,0.001]
[1757731770402,174.95322172,4699.1,4699.0,0.001]
[1757731770910,175.27108913,4699.1,4699.0,0.001]
[1757731771305,176.5010432,4699.1,4699.0,0.001]
[1757731772222,176.302422,4699.1,4699.0,0.001]
[1757731772716,177.532422,4699.1,4699.0,0.001]
[1757731773306,177.41322172,4699.1,4699.0,0.001]
[1757731774041,178.64322172,4699.1,4699.0,0.001]
[1757731775430,179.87322172,4699.1,4699.0,0.001]
[1757731776599,182.10922172,4699.1,4699.0,0.001]
[1757731776822,183.33922172,4699.1,4699.0,0.001]
[1757731777562,183.33843298,4699.1,4699.0,0.001]
[1757731778246,184.56843298,4699.1,4699.0,0.001]
[1757731779600,185.79843298,4699.1,4699.0,0.001]
[1757731779836,183.56243298,4699.1,4699.0,0.001]
[1757731781554,184.79243298,4699.1,4699.0,0.001]
[1757731782372,184.79122844,4699.1,4699.0,0.001]
[1757731783680,186.02122844,4699.1,4699.0,0.001]
[1757731783982,183.28116951,4699.1,4699.0,0.001]
[1757731784182,185.5647617,4699.1,4699.0,0.001]
[1757731784382,186.0222617,4699.1,4699.0,0.001]
[1757731784579,186.33971595,4699.1,4699.0,0.001]
[1757731784940,187.56971595,4699.1,4699.0,0.001]
[1757731786340,188.79971595,4699.1,4699.0,0.001]
[1757731787655,190.02971595,4699.1,4699.0,0.001]
[1757731788865,186.49471595,4699.1,4699.0,0.001]
[1757731789065,191.25971595,4699.1,4699.0,0.001]
[1757731790107,191.25631595,4699.1,4699.0,0.001]
[1757731790607,192.48631595,4699.1,4699.0,0.001]
[1757731791869,193.71631595,4699.1,4699.0,0.001]
[1757731793197,194.28763962,4699.1,4699.0,0.001]
[1757731793364,195.51763962,4699.1,4699.0,0.001]
[1757731795016,196.74763962,4699.1,4699.0,0.001]
[1757731795218,196.17631595,4699.1,4699.0,0.001]
[1757731796388,197.40631595,4699.1,4699.0,0.001]
[1757731797818,198.63631595,4699.1,4699.0,0.001]
[1757731799218,199.86631595,4699.1,4699.0,0.001]
[1757731799541,202.10231595,4699.1,4699.0,0.001]
[1757731799694,199.51141595,4699.1,4699.0,0.001]
[1757731800330,199.79731595,4699.1,4699.0,0.001]
[1757731800493,202.82291595,4699.1,4699.0,0.001]
[1757731800928,194.97041595,4699.1,4699.0,0.3123]
[1757731801100,198.50629374,4699.1,4699.0,0.7766]
[1757731802041,199.73629374,4699.1,4699.0,0.7766]
[1757731802333,199.73682088,4699.1,4699.0,0.001]
[1757731802524,199.73770432,4699.1,4699.0,0.001]
[1757731802905,202.27330279,4699.1,4699.0,0.001]
[1757731803314,203.50330279,4699.1,4699.0,0.001]
[1757731804328,203.50331271,4699.1,4699.0,0.001]
[1757731804711,204.27921271,4699.1,4699.0,0.001]
[1757731805419,204.27921452,4699.1,4699.0,0.001]
[1757731805949,202.19771452,4699.1,4699.0,0.001]
[1757731806144,199.89271452,4699.1,4699.0,0.3123]
[1757731806354,203.42771452,4699.1,4699.0,0.3123]
[1757731806645,208.1993303,4699.1,4699.0,0.001]
[1757731806847,207.7452303,4699.1,4699.0,0.001]
[1757731807053,208.1993303,4699.1,4699.0,0.001]
[1757731807934,209.4293303,4699.1,4699.0,0.001]
[1757731809206,210.6593303,4699.1,4699.0,0.001]
[1757731810450,212.29235466,4699.1,4699.0,0.001]
[1757731810740,213.52235466,4699.1,4699.0,0.001]
[1757731812074,214.75235466,4699.1,4699.0,0.001]
[1757731812834,214.29825466,4699.1,4699.0,0.001]
[1757731814262,214.29827257,4699.1,4699.0,0.001]
[1757731814452,215.52827257,4699.1,4699.0,0.001]
[1757731815762,216.75827257,4699.1,4699.0,0.001]
[1757731816260,214.67677257,4699.1,4699.0,0.001]
[1757731816462,216.75797257,4699.1,4699.0,0.001]
[1757731816668,217.21347257,4699.1,4699.0,0.001]
[1757731817069,217.98797257,4699.1,4699.0,0.001]
[1757731818566,219.21797257,4699.1,4699.0,0.001]
[1757731820697,220.44797257,4699.1,4699.0,0.001]
[1757731821785,219.92976023,4699.1,4699.0,0.001]
[1757731821991,220.44797528,4699.1,4699.0,0.001]
[1757731822196,221.67797528,4699.1,4699.0,0.001]
[1757731823458,223.6721927,4699.1,4699.0,0.001]
[1757731824767,224.1249927,4699.1,4699.0,0.001]
[1757731825047,225.3549927,4699.1,4699.0,0.001]
[1757731825489,224.9021927,4699.1,4699.0,0.001]
[1757731825792,224.13796379,4699.1,4699.0,0.001]
[1757731825996,222.05676379,4699.1,4699.0,0.001]
[1757731826289,216.28576379,4699.1,4699.0,0.3032]
[1757731826520,220.17265026,4699.1,4699.0,2.5244]
[1757731826818,220.96465026,4699.1,4699.0,2.5244]
[1757731827521,220.96465026,4699.1,4699.0,0.3032]
[1757731827910,222.19465026,4699.1,4699.0,0.3032]
[1757731829125,223.42465026,4699.1,4699.0,0.3032]
[1757731830724,224.65465026,4699.1,4699.0,0.3032]
[1757731831522,221.12065026,4699.1,4699.0,0.3032]
[1757731831725,224.65465026,4699.1,4699.0,0.3032]
[1757731832099,225.88465026,4699.1,4699.0,0.3032]
[1757731832304,225.88465026,4699.1,4699.0,0.001]
[1757731832507,225.88464916,4699.1,4699.0,0.001]
[1757731833109,228.48514916,4699.1,4699.0,0.001]
[1757731833354,228.4851492,4699.1,4699.0,0.001]
[1757731833495,230.1554492,4699.1,4699.0,0.001]
[1757731833911,229.7026492,4699.1,4699.0,0.001]
[1757731834454,230.1554492,4699.1,4699.0,0.001]
[1757731834864,231.3854492,4699.1,4699.0,0.001]
[1757731835178,232.14966662,4699.1,4699.0,0.001]
[1757731835310,6.1139414,4698.9,4698.8,0.011]
[1757731835646,15.01913328,4698.9,4698.8,0.011]
[1757731835810,17.16683328,4698.9,4698.8,0.011]
[1757731836008,17.70477127,4698.9,4698.8,0.011]
[1757731836209,18.93477127,4698.9,4698.8,0.011]
[1757731836953,18.93473084,4698.9,4698.8,0.011]
[1757731837447,18.93470603,4698.9,4698.8,0.011]
[1757731837621,20.16470603,4698.9,4698.8,0.011]
[1757731839155,21.39470603,4698.9,4698.8,0.011]
[1757731840345,20.93761384,4698.9,4698.8,0.011]
[1757731840551,22.17360189,4698.9,4698.8,0.011]
[1757731841122,20.02590189,4698.9,4698.8,0.011]
[1757731841329,16.27275454,4698.9,4698.8,0.7535]
[1757731841532,12.73875454,4698.9,4698.8,0.7535]
[1757731841733,13.80411814,4698.9,4698.8,0.7535]
[1757731841928,15.03411814,4698.9,4698.8,0.7535]
[1757731842135,15.03411814,4698.9,4698.8,0.3132]
[1757731842336,15.82611814,4698.9,4698.8,0.3132]
[1757731842930,15.82611814,4698.9,4698.8,0.011]
[1757731842931,16.13661814,4698.9,4698.8,0.011]
[1757731843461,19.20381814,4698.9,4698.8,0.011]
[1757731844722,20.43381814,4698.9,4698.8,0.011]
[1757731845728,20.88121814,4698.9,4698.8,0.011]
[1757731846124,21.66381814,4698.9,4698.8,0.011]
[1757731847032,3.92029353,4698.6,4698.5,0.001]
[1757731847363,10.61243269,4698.6,4698.5,0.001]
[1757731847663,11.82111603,4698.6,4698.5,0.3149]
[1757731847847,12.26141603,4698.6,4698.5,0.3149]
[1757731849087,13.49141603,4698.6,4698.5,0.3149]
[1757731850840,14.72141603,4698.6,4698.5,0.3149]
[1757731852842,15.95141603,4698.6,4698.5,0.3149]
[1757731853437,15.95141603,4698.6,4698.5,0.7731]
[1757731854076,15.95116717,4698.6,4698.5,0.3149]
[1757731854230,17.18116717,4698.6,4698.5,0.3149]
[1757731854430,17.18116717,4698.6,4698.5,0.7731]
[1757731854850,17.18116717,4698.6,4698.5,0.3149]
[1757731855441,17.18116717,4698.6,4698.5,0.7731]
[1757731855641,16.28287364,4698.6,4698.5,0.7731]
[1757731855879,18.41116717,4698.6,4698.5,2.5733]
[1757731856385,18.41116717,4698.6,4698.5,0.7731]
[1757731856952,19.64116717,4698.6,4698.5,0.7731]
[1757731857389,19.64116717,4698.6,4698.5,0.3149]
[1757731857575,19.64116717,4698.6,4698.5,0.7731]
[1757731857767,19.64116717,4698.6,4698.5,0.3149]
[1757731858380,22.80606717,4698.6,4698.5,0.001]
[1757731858580,24.62346717,4698.6,4698.5,0.001]
[1757731858790,22.50416717,4698.6,4698.5,0.001]
[1757731858953,22.50416717,4698.6,4698.5,0.3114]
[1757731859158,22.50416717,4698.6,4698.5,0.001]
[1757731859893,23.73416717,4698.6,4698.5,0.3114]
[1757731861594,24.96416717,4698.6,4698.5,0.7696]
[1757731861896,24.9639571,4698.6,4698.5,0.7696]
[1757731862195,24.9639571,4698.6,4698.5,0.3114]
[1757731862894,26.1939571,4698.6,4698.5,0.001]
[1757731863094,26.4958571,4698.6,4698.5,0.001]
[1757731863285,26.1939571,4698.6,4698.5,0.3114]
[1757731863486,28.3132571,4698.6,4698.5,0.001]
[1757731863970,26.1939571,4698.6,4698.5,0.001]
[1757731864178,27.4239571,4698.6,4698.5,0.001]
[1757731864962,27.2249649,4698.6,4698.5,0.001]
[1757731865186,27.42418782,4698.6,4698.5,0.001]
[1757731865563,28.95608782,4698.6,4698.5,0.001]
[1757731865758,31.21248782,4698.6,4698.5,0.001]
[1757731866097,27.23948782,4698.6,4698.5,0.001]
[1757731866319,30.77348782,4698.6,4698.5,0.001]
[1757731866655,27.23948782,4698.6,4698.5,0.001]
[1757731866869,30.77348782,4698.6,4698.5,0.001]
[1757731867094,32.00348782,4698.6,4698.5,0.001]
[1757731868070,32.00376921,4698.6,4698.5,0.001]
[1757731869096,33.23376921,4698.6,4698.5,0.001]
[1757731869995,33.03466918,4698.6,4698.5,0.001]
[1757731870199,33.23390279,4698.6,4698.5,0.001]
[1757731870659,34.46390279,4698.6,4698.5,0.001]
[1757731871072,34.90290279,4698.6,4698.5,0.001]
[1757731872016,36.13290279,4698.6,4698.5,0.001]
[1757731872417,35.69390279,4698.6,4698.5,0.001]
[1757731873064,36.13290279,4698.6,4698.5,0.001]
[1757731873264,36.13285917,4698.6,4698.5,0.001]
[1757731873570,37.36285917,4698.6,4698.5,0.001]
[1757731874713,38.59285917,4698.6,4698.5,0.001]
[1757731876002,38.15385917,4698.6,4698.5,0.001]
[1757731876203,39.38385917,4698.6,4698.5,0.001]
[1757731876965,39.83915917,4698.6,4698.5,0.001]
[1757731877597,41.06915917,4698.6,4698.5,0.001]
[1757731878000,41.06916825,4698.6,4698.5,0.001]
[1757731879210,40.61386825,4698.6,4698.5,0.001]
[1757731879549,41.84386825,4698.6,4698.5,0.001]
[1757731880556,39.72456825,4698.6,4698.5,0.3109]
[1757731880854,40.95461286,4698.6,4698.5,0.3109]
[1757731881150,40.95461286,4698.6,4698.5,0.776]
[1757731881295,40.95461286,4698.6,4698.5,0.3109]
[1757731882107,42.18461286,4698.6,4698.5,0.3109]
[1757731883453,39.88061286,4698.6,4698.5,0.3109]
[1757731883754,43.41461286,4698.6,4698.5,0.3109]
[1757731884543,43.41461128,4698.6,4698.5,0.3109]
[1757731884928,44.64461128,4698.6,4698.5,0.3109]
[1757731886645,45.87461128,4698.6,4698.5,0.3109]
[1757731887601,45.87467782,4698.6,4698.5,0.3109]
[1757731888307,47.10480422,4698.6,4698.5,0.3109]
[1757731889729,48.33480422,4698.6,4698.5,0.3109]
[1757731891234,49.56480422,4698.6,4698.5,0.776]
[1757731892043,49.56480422,4698.6,4698.5,0.3109]
[1757731892458,43.90251069,4698.6,4698.5,2.5511]
[1757731892631,48.66551069,4698.6,4698.5,2.5511]
[1757731892825,50.79380422,4698.6,4698.5,0.3109]
[1757731893256,50.79380422,4698.6,4698.5,0.776]
[1757731893961,52.02380422,4698.6,4698.5,0.776]
[1757731894888,49.89551069,4698.6,4698.5,0.776]
[1757731895589,47.59251069,4698.6,4698.5,0.776]
[1757731895738,48.50654406,4698.6,4698.5,2.5511]
[1757731896141,48.06624406,4698.6,4698.5,2.5511]
[1757731896475,47.94664928,4698.6,4698.5,2.5511]
[1757731896990,49.81508367,4698.6,4698.5,0.776]
[1757731898441,50.84575903,4698.6,4698.5,0.776]
[1757731900234,52.07575903,4698.6,4698.5,0.776]
[1757731901737,53.30575903,4698.6,4698.5,0.776]
[1757731902296,53.10643439,4698.6,4698.5,0.776]
[1757731902910,54.33643439,4698.6,4698.5,0.776]
[1757731903107,56.49633158,4698.6,4698.5,0.3109]
[1757731904401,57.72633158,4698.6,4698.5,0.3109]
[1757731905818,58.95633158,4698.6,4698.5,0.3109]
[1757731907124,60.18633158,4698.6,4698.5,0.3109]